Cogmind - Beta 16 @@@ ROGUE MODE // 2026.02.03 @ 23:56:13 Player: souux Result: Self-destructed Performance ------------- Evolutions (5) 2500 Regions Visited (10) 2000 Robots Destroyed (71) 355 Value Destroyed (2561) 2561 Prototype IDs (33) 660 Alien Tech Used (0) 0 Bonus (444) 444 TOTAL SCORE: 8520 Bonus ------- High Alert Combat Kills 144 Met Data Miner 300 Cogmind --------- Core Integrity 1000/1000 Matter 250/300 Energy 130/240 System Corruption 0% Temperature Cool (0) Movement Flying (23) Location -5/Factory Parts ------- > --- POWER (2) -------- Nuclear Core > --- PROPULSION (6) --- Improved VTOL Module Improved VTOL Module Improved VTOL Module Improved VTOL Module Improved Cesium-ion Thruster > --- UTILITY (7) ------ Small Storage Unit Structural Scanner Enhanced Optical Array Improved Sensor Array Improved Signal Interpreter Transmission Jammer Improved Medium Armor Plating > --- WEAPON (2) ------- Power Maul > --- INVENTORY (8) ---- Nuclear Core Improved Cooling System High-capacity Matter Pod (200) Seismic Detector Hypervelocity Gauss Rifle Molecular Deconstructor Peak State ------------ > --- POWER ------------ Nuclear Core > --- PROPULSION ------- Improved VTOL Module Improved VTOL Module Improved VTOL Module Improved VTOL Module Improved Cesium-ion Thruster > --- UTILITY ---------- Small Storage Unit Structural Scanner Enhanced Optical Array Improved Sensor Array Improved Signal Interpreter Transmission Jammer Improved Medium Armor Plating > --- WEAPON ----------- Power Maul > --- INVENTORY -------- Nuclear Core Improved Cooling System High-capacity Matter Pod Seismic Detector Hypervelocity Gauss Rifle Molecular Deconstructor [Rating: 52] Favorites ----------- Power Improved Ion Engine Engine Improved Ion Engine Power Core Light Nuclear Core Propulsion Improved VTOL Module Treads Spiked Treads Leg Improved Carbon-fiber Leg Wheel Wheel Flight Unit Improved VTOL Module Utility Scrap Shield Device Seismic Detector Storage Small Storage Unit Processor Advanced Visual Processing Unit Hackware Hacking Suite Protection Scrap Shield Weapon Subdweller Machine Gun Energy Gun Medium Laser Energy Cannon Heavy Ion Cannon Ballistic Gun Subdweller Machine Gun Launcher Grenade Launcher Impact Weapon Power Maul Slashing Weapon Greatsword Build | -11 -10 -10 -8 -7 -7 -7 -7 -6 -6 -5 ------- Run | Yrd Mat Sub Mat Fac Low Low Dat Pro Fac Fac Slots Evolved 10 | . . . 4 2 . . . . 2 2 Power 1 | . . . . . . . . . . 1 Propulsion 4 | . . . 2 1 . . . . 1 . Utility 5 | . . . 2 1 . . . . 1 1 Weapon . | . . . . . . . . . . . Parts Attached 96 | 7 1 15 35 31 . . 1 2 2 2 Power 9 | 1 . 2 3 1 . . . 1 1 . Engine 5 | 1 . 2 1 1 . . . . . . Core 4 | . . . 2 . . . . 1 1 . Reactor . | . . . . . . . . . . . Propulsion 25 | 2 . 4 12 6 . . 1 . . . Treads 4 | 2 . 1 1 . . . . . . . Leg 12 | . . 2 10 . . . . . . . Wheel 1 | . . 1 . . . . . . . . Hover . | . . . . . . . . . . . Flight 8 | . . . 1 6 . . 1 . . . Utility 37 | 2 1 5 10 16 . . . . 1 2 Device 18 | 1 . 3 4 9 . . . . . 1 Storage 4 | 1 1 . 1 1 . . . . . . Processor 5 | . . . 2 2 . . . . . 1 Hackware 4 | . . . . 4 . . . . . . Protection 6 | . . 2 3 . . . . . 1 . Artifact . | . . . . . . . . . . . Weapon 25 | 2 . 4 10 8 . . . 1 . . Energy Gun 10 | 2 . . 6 2 . . . . . . Energy Cannon 3 | . . 1 . 2 . . . . . . Ballistic Gun 9 | . . 2 4 2 . . . 1 . . Ballistic Cannon . | . . . . . . . . . . . Launcher 1 | . . 1 . . . . . . . . Special Weapon . | . . . . . . . . . . . Impact Weapon 1 | . . . . 1 . . . . . . Slashing Weapon 1 | . . . . 1 . . . . . . Piercing Weapon . | . . . . . . . . . . . Special Melee Weapon . | . . . . . . . . . . . Unidentified Prototypes 5 | . . . 1 4 . . . . . . Parts Lost 26 | . . 6 15 1 . . 1 3 . . Power 5 | . . 1 2 . . . 1 1 . . Propulsion 5 | . . 2 2 1 . . . . . . Utility 6 | . . 1 4 . . . . 1 . . Weapon 10 | . . 2 7 . . . . 1 . . Highest Loss Streak 4 | . . 4 3 1 . . 1 3 . . To Critical Strikes . | . . . . . . . . . . . Average Backups 6 | 3 7 5 8 6 7 8 6 6 6 6 Power . | . 1 . . 1 1 1 . . . 1 Propulsion 2 | 2 3 2 4 1 2 2 2 1 . . Utility 2 | . 1 1 2 3 4 5 4 5 4 3 Weapon . | . . . . . . . . . 1 2 Tool/Special . | . . . . . . . . . . . Unused Backups 20 | . 1 2 3 10 . . . . . 4 Power 1 | . . . . . . . . . . 1 Propulsion 11 | . 1 1 3 6 . . . . . . Utility 4 | . . . . 2 . . . . . 2 Weapon 4 | . . 1 . 2 . . . . . 1 Tool/Special . | . . . . . . . . . . . Average Slot Usage (%) 89 | . 100 84 80 98 100 100 100 98 77 79 Engine 7 | . 14 13 4 . . . . . . . Core 2 | . . . 3 6 7 7 7 6 3 5 Treads 7 | . 28 13 2 . . . . . . . Leg 4 | . . . 22 . . . . . . . Wheel 5 | . . 13 . . . . . . . . Flight 12 | . . . . 37 38 38 38 38 33 29 Device 8 | . 14 . 12 16 15 15 15 14 7 14 Storage 3 | . 14 . 5 4 7 7 7 7 6 5 Processor 5 | . . . 4 12 15 15 15 15 13 11 Protection 7 | . . 13 6 . . . . . 3 5 Energy Gun 5 | . 28 5 6 4 . . . . . . Energy Cannon 1 | . . . . 2 7 7 7 6 . . Ballistic Gun 11 | . . 21 8 . . . . . 2 . Impact Weapon 2 | . . . . 6 7 7 7 7 6 5 Peak Build Rating 52 | 7 7 29 47 48 44 44 44 46 48 52 Average Rating 28 | 5 7 13 39 44 44 44 43 44 43 50 On Entrance 31 | . 7 7 29 35 46 44 44 41 41 47 Avg Prop Armor Cover (%) 3 | 34 . 2 6 . . . . 4 4 . Naked Turns . | . . . . . . . . . . . Heaviest Build 65 | 13 28 38 65 23 23 23 23 23 24 25 Greatest Support 91 | 40 40 55 91 26 25 25 25 26 26 26 Greatest Overweight (x) 3 | . . 3 1 . . . . . . . Average Overweight (x) . | . . 1 . . . . . . . . Largest Inventory Capacity 15 | 8 15 15 15 15 8 8 8 8 8 8 Average Capacity 7 | 6 13 5 11 6 8 8 8 8 8 8 Most Carried 15 | 6 9 9 15 14 8 8 8 8 8 7 Average Carried 6 | 3 7 5 8 6 7 8 6 7 7 7 Final Capacity 15 | 8 15 5 15 8 8 8 8 8 8 8 Final Carried 14 | 6 9 5 14 8 8 8 8 7 7 7 Class Distribution -------------------- 50% | Mutant 26% | Scout 14% | Scavenger-Mutant 5% | Sprinter Dominant Class ---------------- Mutant | -10/Materials Mutant | -10/Subcaves Scavenger-Mutant | -8/Materials Scout | -7/Factory Scout | -7/Lower Caves Scout | -7/Lower Caves Scout | -7/Data Miner Scout | -6/Proximity Caves Sprinter | -6/Factory Infiltrator-Sprinter | -5/Factory Resources | -11 -10 -10 -8 -7 -7 -7 -7 -6 -6 -5 ----------- Run | Yrd Mat Sub Mat Fac Low Low Dat Pro Fac Fac Matter Collected 2148 | 270 10 289 1046 478 20 . . 35 . . Remotely . | . . . . . . . . . . . Salvage Created 2846 | 123 120 312 1864 334 . . . 93 . . Parts 146 | 8 5 17 92 22 . . . 2 . . Haulers Intercepted 4 | . . . 3 1 . . . . . . Recyclers Shooed 3 | 1 . . 1 1 . . . . . . Parts Field Recycled . | . . . . . . . . . . . Retrieved Matter . | . . . . . . . . . . . Parts Self-Destructed 26 | . . 10 . . 16 . . . . . Prevented 4 | . . . . . 2 . . 2 . . Parts Restored . | . . . . . . . . . . . Kills | -11 -10 -10 -8 -7 -7 -7 -7 -6 -6 -5 ------- Run | Yrd Mat Sub Mat Fac Low Low Dat Pro Fac Fac Combat Hostiles Destroyed 50 | . 2 7 36 3 . . . 2 . . Guns 39 | . 2 5 30 2 . . . . . . Cannons 2 | . . . 1 1 . . . . . . AOE 4 | . . 1 3 . . . . . . . Classes Destroyed 18 | 2 2 3 9 2 . . . . . . Worker 1 | . . . 1 . . . . . . . Builder 5 | . 2 . . 3 . . . . . . Tunneler 2 | 2 . . . . . . . . . . Hauler 4 | . . . 3 1 . . . . . . Recycler 1 | 1 . . . . . . . . . . Operator 1 | . . . . 1 . . . . . . Watcher 7 | . . . 2 5 . . . . . . Swarmer 4 | . . . 3 1 . . . . . . Grunt 22 | . 2 . 20 . . . . . . . Brawler 1 | . . . 1 . . . . . . . Duelist 1 | . . . 1 . . . . . . . Sentry 9 | . . 2 7 . . . . . . . Specialist 2 | . . . 2 . . . . . . . Hunter 3 | . . . 1 . . . . 2 . . Programmer 2 | . . . . 2 . . . . . . Heavy 1 | . . . 1 . . . . . . . Cobbler 1 | . . 1 . . . . . . . . Subdweller 5 | . . 5 . . . . . . . . Best Kill Streak 4 | 2 2 2 4 1 . . . 1 . . Combat Bots Only 4 | . 1 2 4 1 . . . 1 . . Max Kills in Single Turn 2 | 1 1 1 2 1 . . . 1 . . Gunslinging . | . . . . . . . . . . . Exploded 2 | . . 1 2 . . . . . . . Melee . | . . . . . . . . . . . Uniques/NPCs Destroyed . | . . . . . . . . . . . Combat | -11 -10 -10 -8 -7 -7 -7 -7 -6 -6 -5 -------- Run | Yrd Mat Sub Mat Fac Low Low Dat Pro Fac Fac Hostile Shots Fired 453 | . 9 56 277 25 . 11 13 40 21 1 Missed 136 | . 2 12 63 15 . 8 7 22 6 1 Hits 317 | . 7 44 214 10 . 3 6 18 15 . Melee 3 | . . . 3 . . . . . . . Projectile 314 | . 7 44 211 10 . 3 6 18 15 . Critical Strikes 16 | . . 2 13 1 . . . . . . Part Disruptions 1 | . . . . . . . 1 . . . Damage Taken 6032 | . 78 1068 3844 216 . 31 279 382 134 . Core 895 | . 22 212 515 14 . . 59 46 27 . Absorbed by Shields . | . . . . . . . . . . . Ignored by Resistances 41 | . . . 41 . . . . . . . Regen/Repaired (Parts) 20 | . . . . 20 . . . . . . Core Remaining (%) 58 | 100 . 6 6 . . . . 83 96 . Volleys Fired 303 | 8 10 71 147 20 . 21 . 26 . . Largest 2 | 2 2 2 2 2 . 1 . 1 . . Hottest 113 | 100 100 100 113 80 . 65 . 65 . . Shots Fired 467 | 16 20 94 267 23 . 21 . 26 . . Gun 403 | 16 20 87 263 17 . . . . . . Cannon 60 | . . 3 4 6 . 21 . 26 . . Launcher 4 | . . 4 . . . . . . . . Special . | . . . . . . . . . . . Kinetic 182 | . . 49 127 6 . . . . . . Thermal 183 | 16 20 41 42 17 . 21 . 26 . . Explosive 4 | . . 4 . . . . . . . . Electromagnetic 98 | . . . 98 . . . . . . . Robot Hit Streak 20 | 4 4 11 20 11 . . . . . . Robot Miss Streak 3 | 1 3 2 3 2 . . . . . . Penetration Max . | . . . . . . . . . . . Secondary Targets 1 | . . . 1 . . . . . . . Max Gunslinging Chain 1 | . . . 1 . . . . . . . Shots Hit Robots 309 | 11 12 50 202 29 . . 1 4 . . Core Hits 120 | 4 6 14 84 11 . . . 1 . . Critical Kills 2 | . . 1 . 1 . . . . . . Critical Parts Destroyed 6 | . . . 1 3 . . . 2 . . Critical Strikes 18 | 1 2 4 5 4 . . . 2 . . Burn 7 | 1 2 3 1 . . . . . . . Destroy 3 | . . 1 2 . . . . . . . Corrupt 2 | . . . 2 . . . . . . . Smash 6 | . . . . 4 . . . 2 . . Melee Attacks 121 | . . . . 76 3 1 26 12 2 1 Impact 118 | . . . . 73 3 1 26 12 2 1 Slashing 3 | . . . . 3 . . . . . . Piercing . | . . . . . . . . . . . Sneak Attacks 5 | . . . . 4 . . 1 . . . Combat Hostiles . | . . . . . . . . . . . Follow-up Attacks . | . . . . . . . . . . . Damage Inflicted 6517 | 153 161 926 3704 1250 . . 112 211 . . Guns 4664 | 153 161 730 3289 331 . . . . . . Cannons 190 | . . . 58 132 . . . . . . Explosions 553 | . . 196 357 . . . . . . . Melee 1110 | . . . . 787 . . 112 211 . . Ramming . | . . . . . . . . . . . Kinetic 2293 | . . 395 1823 75 . . . . . . Thermal 1930 | 153 161 335 893 388 . . . . . . Explosive 196 | . . 196 . . . . . . . . Electromagnetic 988 | . . . 988 . . . . . . . Impact 1110 | . . . . 787 . . 112 211 . . Slashing . | . . . . . . . . . . . Piercing . | . . . . . . . . . . . Highest Corruption 2 | . . . . 2 . . . . . . Average Corruption 1 | . . . . 1 . . . . . . Corruption Purged 2 | . . . . 2 . . . . . . Corruption Blocked . | . . . . . . . . . . . Effects 6 | . . . . 6 . . . . . . Message Errors 1 | . . . . 1 . . . . . . Matter Fused 2 | . . . . 2 . . . . . . Heat Flow Errors 1 | . . . . 1 . . . . . . Energy Discharges 1 | . . . . 1 . . . . . . Data Loss (minor) 1 | . . . . 1 . . . . . . Overload Shots . | . . . . . . . . . . . Overflow Damage 610 | . . . . 400 . . 52 158 . . Projectiles 44 | . . . . 44 . . . . . . Explosions . | . . . . . . . . . . . Melee 566 | . . . . 356 . . 52 158 . . Knockbacks 4 | . . . . 2 . . 1 1 . . Impact 4 | . . . . 2 . . 1 1 . . Kinetic . | . . . . . . . . . . . Secondary . | . . . . . . . . . . . Self-Inflicted Damage 282 | . . 31 251 . . . . . . . Shots 7 | . . 2 5 . . . . . . . Rammed . | . . . . . . . . . . . Targets Rammed . | . . . . . . . . . . . Kicked . | . . . . . . . . . . . Crushed . | . . . . . . . . . . . Highest Temperature 435 | 72 90 9 435 415 4 200 4 213 4 . Average Temperature 73 | 34 38 3 177 32 2 55 2 47 2 . Received Heat Transfer 1932 | . 42 258 1548 . . 9 . 45 30 . Effects 15 | . . . 14 . . 1 . . . . Shutdowns 3 | . . . 3 . . . . . . . Energy Bleed 6 | . . . 5 . . 1 . . . . Matter Decay 3 | . . . 3 . . . . . . . Short Circuit 2 | . . . 2 . . . . . . . Damage (minor) 1 | . . . 1 . . . . . . . Siege Activations . | . . . . . . . . . . . Martial Activations . | . . . . . . . . . . . Shielding Activations . | . . . . . . . . . . . Robots Disrupted . | . . . . . . . . . . . Combat Hostiles . | . . . . . . . . . . . Robots Corrupted 6 | . . . 2 2 . . . 2 . . Combat Hostiles 4 | . . . 2 . . . . 2 . . Parts Fried 10 | . . . 3 4 . . . 3 . . Impact Corruptions 17 | . . . . 13 . . 1 3 . . Robots Melted 1 | . . 1 . . . . . . . . Combat Hostiles 1 | . . 1 . . . . . . . . Parts Melted 8 | 1 3 1 . 3 . . . . . . Heat Transferred 4600 | 518 629 1221 1534 698 . . . . . . Parts Sabotaged . | . . . . . . . . . . . Parts Stolen . | . . . . . . . . . . . Parts Stripped . | . . . . . . . . . . . Power Chain Reactions 6 | . . . 6 . . . . . . . Alert | -11 -10 -10 -8 -7 -7 -7 -7 -6 -6 -5 ------- Run | Yrd Mat Sub Mat Fac Low Low Dat Pro Fac Fac Maximum Alert Level 2 | . . . 2 1 . . . . . . Low Security (%) 60 | 100 100 . 46 61 . . . . 100 100 Level 1 22 | . . . 17 38 . . . . . . Level 2 17 | . . . 36 . . . . . . . Level 3 . | . . . . . . . . . . . Level 4 . | . . . . . . . . . . . Level 5 . | . . . . . . . . . . . High Security . | . . . . . . . . . . . Max Security . | . . . . . . . . . . . Peak Influence 653 | 10 45 . 653 282 . . . . 43 29 Initial 282 | . . . . 282 . . . . 28 14 Average 195 | . 11 . 285 161 . . . . 31 25 Influence Increases 2376 | 15 84 55 1254 537 45 90 . 250 31 15 Destroy 0b10 Robot/C 900 | . 40 40 720 60 . . . 40 . . Destroy 0b10 Robot/NC 105 | 15 10 . 30 50 . . . . . . Destroy Leader 242 | . 10 . 200 32 . . . . . . Successful Hack 139 | . 9 . 33 83 . . . . 14 . Disable Machine 90 | . . . 30 45 . . . . . 15 Destroy Structure 135 | . . . 76 57 . . . . 2 . Partial Spotted 195 | . . . 15 165 . . . . 15 . Lose Combat Pursuer 570 | . 15 15 150 45 45 90 . 210 . . Influence Decreases 2357 | 15 84 55 631 1021 184 70 20 205 47 25 Entered New Map 445 | . . . . 341 52 . 20 . 17 15 Time Decay 1592 | 15 84 55 493 510 132 70 . 193 30 10 Lost Part 160 | . . . 138 10 . . . 12 . . Lost Ally 10 | . . . . 10 . . . . . . Purge Threat 150 | . . . . 150 . . . . . . Squads Dispatched 19 | . 1 . 9 9 . . . . . . Investigation 6 | . 1 . 1 4 . . . . . . Extermination 4 | . . . . 4 . . . . . . Reinforcement 5 | . . . 4 1 . . . . . . Assault . | . . . . . . . . . . . Garrison 4 | . . . 4 . . . . . . . Intercept . | . . . . . . . . . . . Searches Triggered . | . . . . . . . . . . . Construction Impeded 2 | . . . 1 1 . . . . . . Haulers Reinforced . | . . . . . . . . . . . Active Scanning Responses . | . . . . . . . . . . . Cargo Convoy Interrupts . | . . . . . . . . . . . Stealth | -11 -10 -10 -8 -7 -7 -7 -7 -6 -6 -5 --------- Run | Yrd Mat Sub Mat Fac Low Low Dat Pro Fac Fac Distress Signals 8 | . . . 3 3 . . . . 2 . Communications Jammed . | . . . . . . . . . . . Distress Signals . | . . . . . . . . . . . Times Spotted 134 | . 5 8 56 17 3 7 4 22 9 3 Peak Tracking Total 10 | . 2 2 5 4 3 4 4 10 10 5 Tactical Retreats 18 | . 1 1 5 3 1 2 . 5 . . Traps | -11 -10 -10 -8 -7 -7 -7 -7 -6 -6 -5 ------- Run | Yrd Mat Sub Mat Fac Low Low Dat Pro Fac Fac Traps Triggered 7 | . 1 2 3 1 . . . . . . Indirectly . | . . . . . . . . . . . Trap Hack Attempts . | . . . . . . . . . . . Triggered . | . . . . . . . . . . . Disarmed . | . . . . . . . . . . . Reprogrammed . | . . . . . . . . . . . Reused . | . . . . . . . . . . . Traps Extracted . | . . . . . . . . . . . Installed . | . . . . . . . . . . . Triggered . | . . . . . . . . . . . Machines | -11 -10 -10 -8 -7 -7 -7 -7 -6 -6 -5 ---------- Run | Yrd Mat Sub Mat Fac Low Low Dat Pro Fac Fac Machines Disabled 9 | . . 1 2 3 . . 1 1 . 1 Max in Single Turn 1 | . . 1 1 1 . . 1 1 . 1 Garrison Access 2 | . . . 1 1 . . . . . . Machines Repaired . | . . . . . . . . . . . Machines Dismantled . | . . . . . . . . . . . Machines Sabotaged . | . . . . . . . . . . . Overloaded Fab Kills . | . . . . . . . . . . . Hacking | -11 -10 -10 -8 -7 -7 -7 -7 -6 -6 -5 --------- Run | Yrd Mat Sub Mat Fac Low Low Dat Pro Fac Fac Machines Accessed 39 | . 1 2 5 24 . 2 4 . 1 . Terminals 21 | . 1 . 4 15 . . . . 1 . Fabricators 4 | . . . . 4 . . . . . . Repair Stations 2 | . . . . 2 . . . . . . Recycling Units . | . . . . . . . . . . . Scanalyzers 2 | . . . . 2 . . . . . . Garrison Access 2 | . . . 1 1 . . . . . . Total Hacks 123 | . 7 6 17 59 . 5 26 . 3 . Successful 83 | . 3 6 8 34 . 5 26 . 1 . Failed 40 | . 4 . 9 25 . . . . 2 . Catastrophic 7 | . . . 1 6 . . . . . . Database Lockouts . | . . . . . . . . . . . Manual 40 | . 2 . 9 26 . . . 1 2 . Terminals 61 | . 7 . 14 37 . . . . 3 . Fabricators 12 | . . . . 12 . . . . . . Repair Stations 4 | . . . . 4 . . . . . . Recycling Units . | . . . . . . . . . . . Scanalyzers 4 | . . . . 4 . . . . . . Garrison Access 5 | . . . 3 2 . . . . . . Terminal Hacks 49 | . 1 6 2 9 . 5 26 . . . Record 20 | . . 5 . . . 4 11 . . . Part Schematic 10 | . . . . 1 . . 9 . . . Robot Schematic 3 | . . . . . . . 3 . . . Prototype ID Bank 6 | . 1 . . 2 . . 3 . . . Open Door 1 | . . . . . . 1 . . . . Emergency Access Points 1 | . . . 1 . . . . . . . Unreport Threat 1 | . . . . 1 . . . . . . Locate Traps 1 | . . . . 1 . . . . . . Recall Investigation 2 | . . . . 2 . . . . . . Recall Extermination 1 | . . . . 1 . . . . . . Recall Reinforcements 1 | . . . . 1 . . . . . . Hauler Manifests 1 | . . . 1 . . . . . . . Proto ID Catalog 1 | . . 1 . . . . . . . . Fabricator Hacks 7 | . . . . 7 . . . . . . Network Status 1 | . . . . 1 . . . . . . Load Schematic 4 | . . . . 4 . . . . . . Build 2 | . . . . 2 . . . . . . Repair Station Hacks 3 | . . . . 3 . . . . . . Scan Component 1 | . . . . 1 . . . . . . Repair 1 | . . . . 1 . . . . . . Refit 1 | . . . . 1 . . . . . . Recycling Unit Hacks . | . . . . . . . . . . . Scanalyzer 2 | . . . . 2 . . . . . . Retrieve Study 2 | . . . . 2 . . . . . . Garrison Access Hacks 2 | . . . 1 1 . . . . . . Seal Access 2 | . . . 1 1 . . . . . . Unauthorized Hacks 20 | . 2 . 5 12 . . . . 1 . Terminals 18 | . 2 . 5 10 . . . . 1 . Assimilate 1 | . . . . 1 . . . . . . Botnet 13 | . 1 . 2 9 . . . . 1 . Skim 4 | . 1 . 3 . . . . . . . Fabricators 2 | . . . . 2 . . . . . . Recompile 2 | . . . . 2 . . . . . . Repair Stations . | . . . . . . . . . . . Recycling Units . | . . . . . . . . . . . Scanalyzers . | . . . . . . . . . . . Garrison Access . | . . . . . . . . . . . Data Cores Recovered 1 | . . . . 1 . . . . . . Used . | . . . . . . . . . . . Hacking Detections 26 | . 1 . 4 20 . . . . 1 . Full Trace Events 3 | . . . 1 2 . . . . . . Feedback Events . | . . . . . . . . . . . Feedback Blocked . | . . . . . . . . . . . Robot Schematics Acquired 3 | . . . . . . . 3 . . . Robots Built . | . . . . . . . . . . . Authchips . | . . . . . . . . . . . Time . | . . . . . . . . . . . Total Robot Build Rating . | . . . . . . . . . . . Part Schematics Acquired 10 | . . . . 1 . . 9 . . . Parts Built 2 | . . . . 2 . . . . . . Authchips 2 | . . . . 2 . . . . . . Time 174 | . . . . 174 . . . . . . Total Part Build Rating 6 | . . . . 6 . . . . . . Part Studies Acquired 2 | . . . . 2 . . . . . . Parts Repaired 1 | . . . . 1 . . . . . . Time 38 | . . . . 38 . . . . . . Parts Recycled . | . . . . . . . . . . . Recycled Matter . | . . . . . . . . . . . Retrieved Matter . | . . . . . . . . . . . Retrieved Components . | . . . . . . . . . . . Parts Scanalyzed . | . . . . . . . . . . . Part Schematics Acquired . | . . . . . . . . . . . Parts Damaged . | . . . . . . . . . . . Bothacking | -11 -10 -10 -8 -7 -7 -7 -7 -6 -6 -5 ------------ Run | Yrd Mat Sub Mat Fac Low Low Dat Pro Fac Fac Used RIF Installer . | . . . . . . . . . . . Robots Hacked . | . . . . . . . . . . . Non-combat . | . . . . . . . . . . . Combat . | . . . . . . . . . . . Robot Hacks Applied . | . . . . . . . . . . . Relay Couplers Released . | . . . . . . . . . . . Fabnet Peak Effective % . | . . . . . . . . . . . Robots Rewired . | . . . . . . . . . . . Allies Hacked . | . . . . . . . . . . . Hacks Repelled . | . . . . . . . . . . . Allies | -11 -10 -10 -8 -7 -7 -7 -7 -6 -6 -5 -------- Run | Yrd Mat Sub Mat Fac Low Low Dat Pro Fac Fac Total Allies 1 | . . . . 1 . . . . . . Largest Group 1 | . . . . 1 . . . . . . Highest-Rated Group 10 | . . . . 10 . . . . . . Highest-Rated Ally 10 | . . . . 10 . . . . . . Total Orders . | . . . . . . . . . . . Ally Attacks . | . . . . . . . . . . . Total Damage . | . . . . . . . . . . . Kills . | . . . . . . . . . . . Allies Corrupted . | . . . . . . . . . . . Allies Melted . | . . . . . . . . . . . Intel | -11 -10 -10 -8 -7 -7 -7 -7 -6 -6 -5 ------- Run | Yrd Mat Sub Mat Fac Low Low Dat Pro Fac Fac Active Infowar (turns) 5116 | 113 277 106 1650 1389 372 328 136 655 70 20 Optics 3313 | . . . 355 1377 372 328 136 655 70 20 Sensors 2395 | . . . . 951 372 328 136 595 . 13 Structural 1624 | . . . . 43 372 328 136 655 70 20 Seismic 3018 | 113 277 106 1650 872 . . . . . . Jamming 42 | . . . 3 2 . . . . 17 20 ECM 1 | . . . . 1 . . . . . . Robot Analysis Total . | . . . . . . . . . . . Derelict Logs Recovered 7 | . . 1 . . 1 3 . 2 . . Drone Launches . | . . . . . . . . . . . Drone Recoveries . | . . . . . . . . . . . Exploration | -11 -10 -10 -8 -7 -7 -7 -7 -6 -6 -5 ------------- Run | Yrd Mat Sub Mat Fac Low Low Dat Pro Fac Fac Turns Passed 9048 | 207 277 3875 1719 1389 372 328 136 655 70 20 Spaces Moved 9421 | 130 135 1567 838 2791 871 1040 213 1550 234 52 Core 45 | 45 . . . . . . . . . . Treads 1502 | 85 135 1253 29 . . . . . . . Legs 882 | . . 73 809 . . . . . . . Wheels 241 | . . 241 . . . . . . . . Hover . | . . . . . . . . . . . Flight 6751 | . . . . 2791 871 1040 213 1550 234 52 Fastest Speed 23 | 50 160 110 103 23 23 23 23 23 23 23 Average Speed 70 | 121 160 232 122 23 23 23 23 23 25 23 Slowest Speed 260 | 160 160 260 260 23 23 23 23 29 29 23 Overloaded Moves . | . . . . . . . . . . . Propulsion Burnouts . | . . . . . . . . . . . Robots Hopped 6 | . . . . 6 . . . . . . Potential Cave-ins . | . . . . . . . . . . . Cave-ins Triggered . | . . . . . . . . . . . Exploration Rate (%) 54 | 5 21 78 59 71 82 97 82 98 8 3 Regions Visited 10 Branch Regions 5 Pre-discovered Areas 4 | . . 1 . . . 1 1 1 . . Known Exits Taken 6 | . . . . 1 1 1 1 1 1 . Unknown Exits Taken 4 | 1 1 1 1 . . . . . . . Scrap Searched 28 | . . 9 . . 8 9 . 2 . . Spaces Dug 95 | . . 20 . 57 3 5 . 8 2 . Terrain Destroyed 179 | . . 20 79 57 3 7 . 11 2 . Melee 66 | . . . . 57 3 1 . 3 2 . Projectile 19 | . . 1 4 . . 6 . 8 . . AOE 94 | . . 19 75 . . . . . . . Terrain Rammed . | . . . . . . . . . . . Walls Destroyed . | . . . . . . . . . . . Machines Disabled . | . . . . . . . . . . . Actions | -11 -10 -10 -8 -7 -7 -7 -7 -6 -6 -5 --------- Run | Yrd Mat Sub Mat Fac Low Low Dat Pro Fac Fac Total 11143 | 162 177 1711 1257 3361 1035 1105 247 1791 240 57 Wait 1029 | 3 26 39 181 375 160 44 4 195 . 2 Move 9399 | 129 134 1566 837 2778 870 1039 212 1549 233 52 Hop 6 | . . . . 6 . . . . . . Pick Up 72 | 12 4 4 29 16 1 . 2 3 1 . Fast Attach 58 | 4 . 7 21 24 . . . . 1 1 Attach 38 | 3 . 5 15 11 . . . 2 2 . Detach 1 | . . . . . . . . . 1 . Swap 24 | . 1 3 5 11 1 . 1 1 . 1 Drop 87 | 3 2 11 22 44 . . 2 3 . . Fire 303 | 8 10 71 147 20 . 21 . 26 . . Melee 121 | . . . . 76 3 1 26 12 2 1 Ram . | . . . . . . . . . . . Kick . | . . . . . . . . . . . Crush . | . . . . . . . . . . . Escape Stasis . | . . . . . . . . . . . Rewire . | . . . . . . . . . . . Trap . | . . . . . . . . . . . Miscellaneous 5 | . . 5 . . . . . . . . Route ------- -11/Scrapyard -10/Materials (discovered 2 exits: [*Mat] / *Sub) -10/Subcaves (discovered 4 exits: *Mat x2 / Rec / [*Scr]) -8/Materials (discovered 2 exits: *Fac x2) -7/Factory (discovered 4 exits: *Fac x3 / *Low) -7/Lower Caves -7/Lower Caves (discovered 2 exits: *Fac / *Dat) -7/Data Miner -6/Proximity Caves -6/Factory -5/Factory (discovered 1 exit: Upp) History --------- Turn | Location | Event 5 | -11/Scrapyard | Discovered new exit (range 15) 208 | -11/Scrapyard | Entered Materials 310 | -10/Materials | Build established: Mutant 343 | -10/Materials | Discovered new exit (range 9) 348 | -10/Materials | Discovered new exit (range 4) 485 | -10/Materials | Entered Subcaves 486 | -10/Subcaves | Approached by a straggling Scientist 545 | -10/Subcaves | Core integrity fell below 50% 553 | -10/Subcaves | Lost 4 parts (1p1n1u1w) 741 | -10/Subcaves | A swath of the cavern ceiling suddenly collapsed 741 | -10/Subcaves | Learned Materials garrison access intel 888 | -10/Subcaves | Core integrity fell below 20% 1458 | -10/Subcaves | Discovered new exit (range 15) 1620 | -10/Subcaves | Shifting Twisted Machinery released Sub. Laser 1626 | -10/Subcaves | Shifting Twisted Machinery released Battle Cannon 1838 | -10/Subcaves | Visited Clippyterm 1846 | -10/Subcaves | Identified exit to Recycling 1846 | -10/Subcaves | Learned location of Extension (-5) 2055 | -10/Subcaves | Scientist uncovered a shortcut to Scraptown 2240 | -10/Subcaves | Discovered new exit (range 7) 2634 | -10/Subcaves | Curiously followed by a Cobbler waking with a query about "LVR3C" 2681 | -10/Subcaves | Shifting Twisted Machinery released Sub. Laser 2692 | -10/Subcaves | Shifting Twisted Machinery released Sub. Monowheel 3055 | -10/Subcaves | A swath of the cavern ceiling suddenly collapsed 3225 | -10/Subcaves | Ambushed by angry Subdweller bent on revenge 3257 | -10/Subcaves | Shifting Twisted Machinery released Battle Rifle 3261 | -10/Subcaves | Shifting Twisted Machinery released Flamer 4228 | -10/Subcaves | Visited 4L-MR0's lab 4261 | -10/Subcaves | Found Cargo Legs 4262 | -10/Subcaves | Attached Cargo Legs, gained temporary slots: Utility x2 4360 | -10/Subcaves | Entered Materials 4360 | -8/Materials | Evolved 4 slots: Propulsion x2, Utility x2 4361 | -8/Materials | Loaded intel: 1 garrison access location 4645 | -8/Materials | Discovered new exit (range 12) 4704 | -8/Materials | Lost 3 parts (1p2w) 4814 | -8/Materials | Build established: Scavenger-Mutant 4848 | -8/Materials | Core integrity fell below 50% 5042 | -8/Materials | Garrison activated, responded to threat 5418 | -8/Materials | Lost 3 parts (1n1u1w) 5585 | -8/Materials | Core integrity fell below 20% 5703 | -8/Materials | Discovered new exit (range 8) 5868 | -8/Materials | Garrison activated, responded to threat 6079 | -8/Materials | Entered Factory 6079 | -7/Factory | Evolved 2 slots: Propulsion x1, Utility x1 6473 | -7/Factory | Discovered new exit (range 5) 6598 | -7/Factory | Discovered new exit (range 20) 6602 | -7/Factory | Identified exit to Factory 6624 | -7/Factory | Discovered new exit (range 3) 6625 | -7/Factory | Identified exit to Lower Caves 6784 | -7/Factory | Repaired Lgt. Nuclear Core+ 6824 | -7/Factory | Build established: Scout 7041 | -7/Factory | Discovered exit to Factory (range 11) 7137 | -7/Factory | Fabricated Imp. VTOL Module? 7230 | -7/Factory | Fabricated Imp. VTOL Module (x1) 7468 | -7/Factory | Entered Lower Caves 7497 | -7/Lower Caves | Spotted B-75 Beast 7506 | -7/Lower Caves | Learned Factory stockpile data 7722 | -7/Lower Caves | Encountered a Warlord checkpoint 7758 | -7/Lower Caves | Discovered new exit (range 18) 7761 | -7/Lower Caves | Identified exit to Lower Caves 7840 | -7/Lower Caves | Entered another Lower Caves area 7874 | -7/Lower Caves | Discovered exit to Factory (range 12) 7904 | -7/Lower Caves | Identified exit to Data Miner 7988 | -7/Lower Caves | Learned Factory stockpile data 7994 | -7/Lower Caves | Entered an active Warlord outpost 7997 | -7/Lower Caves | Learned Armory trap positions 8131 | -7/Lower Caves | Attracted the attention of an 0b10 checkpoint 8168 | -7/Lower Caves | Entered Data Miner 8168 | -7/Data Miner | Discovered new exit (range 6) 8172 | -7/Data Miner | Met Data Miner 8180 | -7/Data Miner | Learned location of Section 7 (-2) 8180 | -7/Data Miner | Acquired the access code to Warlord's prototype stash 8182 | -7/Data Miner | Received God Mode back door access code from Data Miner 8188 | -7/Data Miner | Identified exit to Proximity Caves 8202 | -7/Data Miner | Data Conduit disabled 8304 | -7/Data Miner | Entered Proximity Caves 8341 | -6/Proximity Caves | Learned Factory stockpile data 8537 | -6/Proximity Caves | Acquired the password to a Derelict Tinkerer's latest research 8544 | -6/Proximity Caves | Found Prototype Special Weapon 8764 | -6/Proximity Caves | Caught by Unaware searching for contraband prototypes 8914 | -6/Proximity Caves | Caught by Unaware searching for contraband prototypes 8930 | -6/Proximity Caves | Lost 3 parts (1p1u1w) 8958 | -6/Proximity Caves | Discovered exit to Factory (range 5) 8959 | -6/Proximity Caves | Entered Factory 8959 | -6/Factory | Evolved 2 slots: Propulsion x1, Utility x1 9026 | -6/Factory | Discovered new exit (range 16) 9029 | -6/Factory | Identified exit to Factory 9029 | -6/Factory | Entered another Factory area 9029 | -5/Factory | Evolved 2 slots: Power x1, Utility x1 9030 | -5/Factory | Identified exit to Upper Caves 9049 | -5/Factory | Self-destructed Last Messages --------------- 09012_ K-01 Serf pushes G-50 Soldier. 09026_ EXIT=FOUND 09027_ K-01 Serf latches onto G-50 Soldier. 09027_ K-01 Serf pushes G-50 Soldier. 09028_ O-16 Technician: "IFF HANDSHAKE FAILED. SECURING TERMINAL." 09028_ Slug penetrates Wall. 09029_ K-01 Serf pushes G-50 Soldier. 09029_ EXIT=IDENTIFIED: FACTORY PARAMETERS=POWER+1,UTILITY+1 LOCATION=FACTORY GOAL=ESCAPE Loading 1 Upper Caves entrance... Loading Factory stockpile data (x27)... 09033_ TF Node disabled. 09033_ Imp. Sensor Array tumbles out of TF Node. 09033_ Imp. Signal Interpreter tumbles out of TF Node. 09036_ Acquired Imp. Sensor Array. 09038_ Discarded Adv. Visual Processing Unit. Map ----- +----------------------------------------------------+ | ???????????????????? # ????????????/##???????? | | ???????????????????? # #### ####### ##???????? | | ???????????????????? # ####+#######/##???????? | | ???????????????????? # # ##???????? | | ???????????????????? # # ##???????? | | ???????????????????? # # ##???????? | | ???????????????????? # # ##???????? | | ???????????????????? # # ##???????? | | ???????????????????? # ^ # ##???????? | | ???????????????????? + + ##???????? | | ???????????????????? # # ##???????? | | ????????????????? # # ##???????? | | ?????????????????##### # ???????????? | | ????????????????? # ?????????????? | | ???????????????????? # s ???????????????? | | ????????????????????## ####+###############??? | | ????????????????????## #### ###############??? | | ????????????????????## #### ### = ##? | | ?????################# ####s### ##? | | ????? ################ ####s### " " " " " ##? | | ???? # " " " " " ##? | | ???? # " " " " " ##? | | ???? # " " " " " ##? | | ???? + " " " " " ##? | | ???? # " " " " " ##? | | ????? #### ##############@### # " " " " " ##? | | ????? #### ##### # # " " " " " ##? | | ??!??????????????????" ####### " " " " " ##? | | ???????????????????Y"" ####### ##? | | ??????????????## ##???######+#########? | | ??????????????## """"""""" ######### #######? | | ?????????????? # ######### ##?????? | | ?????????????? # """"""""" + ##?????? | | ?????????????? # ##### ### !!##?????? | | ?????????????? # """"""""" ##### ### ##?????? | | ?????????????? #= ##?????####+####?????? | | ?????????????? + """"""""" ##?????# ?????? | | ?????????????? # ???? ##???????????????????? | | ?????????]???? ##??????#######???????????????????? | | ???????????????????????#######???????????????????? | | ?????????????????????????????????????????????????? | | ?????????????????????????????????????????????????? | | ?????????????????????????????????????????????????? | | ?????????????????????????????????????????????????? | | ?????????????????????????????????????????????????? | | ?????????????????????????????????????????????????? | | ?????????????????????????????????????????????????? | | ?????????????????????????????????????????????????? | | ?????????????????????????????????????????????????? | | ?????????????????????????????????????????????????? | +----------------------------------------------------+ Best States ------------- Heat Dissipation 61 Coolant Potential 50 Energy Generation 16 Energy Capacity 290 Matter Stores 300 Matter Capacity 300 Sight Range 22 Robot Scan Range 15 Terrain Scan Density 10 Jamming Range 12 Armor Coverage 800 Resistance: KI 30 Evasion (%) 65 Targeting Accuracy 8 Recoil Reduction 2 Offensive Hacking 10 Defensive Hacking 10 Authchip Count 1 Item Schematics ----------------- Imp. VTOL Module | -7/Factory | Hacked Combat Drone Bay | -7/Data Miner | Free Lgt. Regenerative Plating | -7/Data Miner | Free Cld. Aerolev Unit | -7/Data Miner | Free Gravity Neutralizer | -7/Data Miner | Free Gui. EMP Blaster | -7/Data Miner | Free Nuclear Pulse Array | -7/Data Miner | Free Adv. System Restoration Module | -7/Data Miner | Free Tesla Rifle | -7/Data Miner | Free HERF Cannon | -7/Data Miner | Free Robot Schematics ------------------ O-24 Administrator | -7/Data Miner | Free L-41 Fighter | -7/Data Miner | Free X-62 Marksman | -7/Data Miner | Free Fabricated ------------ Imp. VTOL Module | x1 | -7/Factory | Authchip Imp. VTOL Module | x1 | -7/Factory | Authchip Repaired ---------- Lgt. Nuclear Core | 60% | -7/Factory Studied --------- Gatling Laser | -7/Factory | Hacked Lgt. Nuclear Core | -7/Factory | Hacked Alien Tech Used ----------------- None Achievements -------------- Survival Of The Most Covered Challenges ------------ None Game ------ Seed ForceInterceptInjector Manual? 0 Play Time 01:51:26 Cumulative 172.2 hours Start 2026.01.15 @ 11:13:25 End 2026.02.03 @ 23:56:13 Sessions 5 Manual Loads 0 Difficulty Rogue Special Mode None Game No. 119 Rogue 119 Adventurer 0 Explorer 0 Win Type - Total 3 Types 3/0/0/0/0/0/0/0/0/0 Lore% 49 Gallery% 53 Achievement% 42 Wizard Run 0 Options --------- Layout 2 ASCII 0 Keyboard 0 Movement Mouse Keybinds 0 Fullscreen 1 Font 24/Smallcaps Map View 50x44 Zoom Use 0% Tactical HUD 1 Map Filters NONE Filters NONE Steam 1 RUN: 05a29948-7f03-440d-a976-cf09f299b763